bitfinex-derivatives/quotes_ETHF0:USTF0_20240904
["timestamp","ask_amount","ask_price","bid_price","bid_amount"]
[1725459519314,0.6964,2402.9,2402.2,0.41629]
[1725459519520,0.41621,2402.8,2401.9,3.2078]
[1725459519720,22.7,2402.8,2401.8,0.653]
[1725459519918,0.6964,2402.9,2401.8,3.8608]
[1725459520218,0.707,2403.0,2402.1,3.2078]
[1725459520423,3.2078,2403.1,2402.1,4.24859]
[1725459520621,3.2078,2403.1,2402.7,0.4162]
[1725459520919,4.1616,2403.0,2402.4,3.62406]
[1725459521113,3.2078,2403.1,2402.6,0.41622]
[1725459521315,3.2078,2403.1,2402.4,3.2078]
[1725459521519,3.2078,2403.1,2402.6,0.41623]
[1725459521862,3.2078,2403.1,2402.4,3.2078]
[1725459522137,0.41616,2403.0,2402.4,3.2078]
[1725459522322,3.2078,2403.1,2402.4,3.2078]
[1725459522620,4.99,2403.0,2402.4,3.2078]
[1725459522819,0.41622,2402.7,2402.4,3.2078]
[1725459523022,9.1516,2403.0,2402.4,3.2078]
[1725459523326,5.40622,2402.7,2402.1,0.41631]
[1725459523621,0.41624,2402.6,2402.1,0.41631]
[1725459523819,4.99,2402.7,2402.3,0.41627]
[1725459524019,4.99,2402.7,2401.8,1.04093]
[1725459524519,1.10899,2402.9,2402.3,0.41628]
[1725459524717,1.10899,2402.9,2401.7,3.2078]
[1725459524718,3.2078,2402.8,2401.7,3.2078]
[1725459524921,4.99,2402.7,2401.7,3.2078]
[1725459525417,0.6928,2402.9,2402.3,0.41627]
[1725459525613,0.6928,2402.9,2401.8,1.04093]
[1725459525614,1.10899,2402.9,2402.2,0.41629]
[1725459525917,0.4162,2402.8,2402.2,0.41629]
[1725459526115,0.6928,2402.9,2402.0,3.2078]
[1725459526314,0.6928,2402.9,2402.5,0.41625]
[1725459526517,3.62395,2403.1,2402.3,3.2078]
[1725459526518,3.2078,2403.1,2402.3,3.2078]
[1725459526826,3.2078,2403.1,2402.8,0.41619]
[1725459527517,3.2078,2403.1,2402.7,0.41621]
[1725459527721,3.2078,2403.1,2402.9,0.41617]
[1725459528017,3.2078,2403.1,2402.7,0.41621]
[1725459528218,3.2078,2403.1,2403.0,0.41616]
[1725459528414,4.99623208,2403.3,2402.9,0.41617]
[1725459528415,0.00623208,2403.3,2402.9,0.41617]
[1725459529037,0.00623208,2403.3,2403.0,0.41615]
[1725459529417,0.00623208,2403.3,2402.9,0.41617]
[1725459529613,0.00623208,2403.3,2403.0,0.41616]
[1725459529820,0.00623208,2403.3,2402.6,0.41622]
[1725459529821,0.41614,2403.2,2402.6,0.41622]
[1725459530121,0.00623208,2403.3,2402.4,2.07878637]
[1725459530328,0.00623208,2403.3,2402.7,1.04054]
[1725459530522,0.00623208,2403.3,2402.6,3.2078]
[1725459530718,0.00623208,2403.3,2402.6,4.24834]
[1725459530919,0.00623208,2403.3,2403.2,0.41613]
[1725459531327,0.00623208,2403.3,2402.9,0.41618]
[1725459531525,0.42234208,2403.3,2402.7,0.41621]
[1725459531738,3.63015208,2403.3,2402.7,0.41621]
[1725459531932,0.00623208,2403.3,2402.6,3.2078]
[1725459532229,0.00623208,2403.3,2402.4,2.07881637]
[1725459532230,0.00623208,2403.3,2403.0,0.41616]
[1725459532428,0.00623208,2403.3,2403.2,0.41613]
[1725459532620,0.00623208,2403.3,2403.0,0.41616]
[1725459533022,0.00623208,2403.3,2403.1,0.41614]
[1725459533242,0.00623208,2403.3,2402.9,3.62397]
[1725459533435,0.00623208,2403.3,2402.9,3.2078]
[1725459533825,0.00623208,2403.3,2402.9,3.62397]
[1725459534021,4.8,2403.1,2402.9,3.2078]
[1725459534233,3.21403208,2403.3,2402.9,3.2078]
[1725459534234,0.00623208,2403.3,2402.9,3.2078]
[1725459534423,0.00623208,2403.3,2403.0,0.41616]
[1725459534623,0.00623208,2403.3,2402.9,3.2078]
[1725459534824,4.8,2403.1,2402.9,3.2078]
[1725459535338,4.8,2403.1,2402.4,0.6781]
[1725459535727,5.21615,2403.1,2402.6,0.41622]
[1725459535923,5.21615,2403.1,2402.8,0.4162]
[1725459535924,4.8,2403.1,2402.8,0.4162]
[1725459536129,4.8,2403.1,2402.4,4.09724938]
[1725459536325,4.8,2403.1,2402.9,0.41617]
[1725459536728,4.8,2403.1,2402.8,0.41619]
[1725459536930,4.8,2403.1,2402.7,3.2078]
[1725459537438,0.00623208,2403.3,2402.8,4.1616]
[1725459537734,0.00623208,2403.3,2402.7,3.2078]
[1725459537938,0.00623208,2403.3,2403.1,0.41614]
[1725459538334,0.00623208,2403.3,2402.6,1.04056]
[1725459538335,0.00623208,2403.3,2403.0,0.41615]
[1725459538539,0.00623208,2403.3,2402.7,3.2078]
[1725459538734,0.00623208,2403.3,2403.1,0.41614]
[1725459539039,0.00623208,2403.3,2402.7,0.15240635]
[1725459539331,5.21615,2403.1,2402.7,0.41621]
[1725459539536,4.8,2403.1,2402.4,4.24593486]
[1725459539741,4.8,2403.1,2402.7,3.2078]
[1725459539941,4.8,2403.1,2402.8,0.41619]
[1725459540131,4.8,2403.1,2402.4,4.24593486]
[1725459540553,4.8,2403.1,2402.8,0.41619]
[1725459540928,4.8,2403.1,2402.4,3.2078]
[1725459540929,4.8,2402.9,2402.4,3.2078]
[1725459541134,4.8,2403.1,2402.4,3.41682884]
[1725459541429,4.8,2403.1,2402.4,4.45749884]
[1725459541630,4.8,2403.1,2402.7,0.41621]
[1725459541832,4.8,2403.1,2402.4,3.41682884]
[1725459542038,4.8,2403.1,2402.4,4.45747884]
[1725459542241,0.00623208,2403.3,2403.0,0.41615]
[1725459542537,0.00623208,2403.3,2402.4,1.24965884]
[1725459542538,4.8,2403.1,2402.4,3.41682884]
[1725459542741,0.41621,2402.7,2402.2,0.4163]
[1725459543035,4.8,2402.6,2402.1,0.41631]
[1725459543239,4.8,2402.6,2401.8,3.2078]
[1725459543547,4.8,2402.6,2402.2,0.41629]
[1725459543748,4.8,2402.6,2401.8,3.35777809]
[1725459544052,5.21624,2402.6,2401.8,3.35777809]
[1725459544239,4.8,2402.6,2401.8,3.35777809]
[1725459544428,0.41626,2402.5,2402.0,0.41632]
[1725459544636,0.41626,2402.5,2402.1,0.41632]
[1725459544832,5.21624,2402.6,2402.1,0.41631]
[1725459545238,4.8,2402.6,2402.2,0.4163]
[1725459545711,4.8,2402.6,2401.8,3.35777809]
[1725459545836,4.8,2402.6,2402.2,0.4163]
[1725459546229,4.8,2402.6,2401.8,4.39868809]
[1725459546441,4.53315,2403.1,2402.2,1.04075]
[1725459546644,5.21624,2402.6,2402.1,0.41631]
[1725459546831,5.21624,2402.6,2402.3,0.41627]
[1725459546832,4.8,2402.6,2402.3,0.41627]
[1725459547032,4.8,2402.8,2401.8,3.35777809]
[1725459547342,8.42401,2402.8,2401.8,4.39868809]
[1725459547544,4.8,2402.8,2401.8,4.39868809]
[1725459547846,5.21624,2402.6,2402.1,0.41631]
[1725459548338,5.21624,2402.6,2401.8,3.35777809]
[1725459548538,5.21624,2402.6,2402.2,0.4163]
[1725459548839,5.21624,2402.6,2401.8,3.35777809]
[1725459548840,0.41625,2402.5,2401.8,3.35777809]
[1725459549040,0.41627,2402.4,2401.9,0.41634]
[1725459549241,0.41627,2402.4,2401.8,3.35777809]
[1725459549242,0.41628,2402.3,2401.8,3.2078]
[1725459549449,3.9187,2402.8,2402.1,3.2078]
[1725459549642,3.9187,2402.8,2401.7,1.18820693]
[1725459549643,5.21624,2402.6,2401.8,3.2078]
[1725459549942,5.21624,2402.6,2402.2,0.41629]
[1725459550131,5.21624,2402.6,2402.2,3.62409]
[1725459550332,9.37865,2402.6,2402.1,0.4163]
[1725459550533,4.8,2402.6,2401.9,1.04089]
[1725459550941,1.47948727,2402.9,2401.9,1.04089]
[1725459550942,4.8,2402.9,2402.3,3.2078]
[1725459551137,4.8,2402.9,2402.4,0.62063141]
[1725459551337,4.8,2402.9,2402.0,4.2486]
[1725459551338,0.41621,2402.8,2402.3,0.41627]
[1725459551550,4.8,2402.9,2402.0,4.2486]
[1725459551551,5.21618,2402.9,2402.0,4.2486]
[1725459551746,4.8,2402.9,2402.6,0.41621]
[1725459551947,4.8,2402.9,2402.7,0.41621]
[1725459552250,4.117,2403.1,2402.7,3.2078]
[1725459552448,4.117,2403.1,2402.5,0.41623]
[1725459552449,0.41617,2403.0,2402.5,0.41623]
[1725459552639,4.117,2403.1,2402.3,0.6906]
[1725459552833,4.117,2403.1,2402.4,0.55797557]
[1725459553142,4.117,2403.1,2402.7,0.41621]
[1725459553347,4.117,2403.1,2402.5,3.2078]
[1725459553546,4.117,2403.1,2403.0,0.41616]
[1725459553748,4.117,2403.1,2403.0,0.62401104]
[1725459553941,1.74352935,2403.3,2403.0,0.62401104]
[1725459553942,0.00623208,2403.3,2403.0,0.20785104]
[1725459554136,0.00623208,2403.3,2402.5,1.04059]
[1725459554137,8.9616,2403.2,2402.5,3.2078]
[1725459554439,8.9616,2403.2,2402.6,0.76777998]
[1725459554440,1.06329727,2403.0,2402.6,0.76777998]
[1725459554744,1.06329727,2403.0,2402.5,3.2078]
[1725459554937,1.06329727,2403.0,2402.6,0.55806219]
[1725459555145,1.06329727,2403.0,2402.5,3.2078]
[1725459555343,1.06329727,2403.0,2402.7,0.55803964]
[1725459555751,1.06329727,2403.0,2402.7,0.41621]
[1725459556145,1.06329727,2403.0,2402.8,0.4162]
[1725459556345,1.06329727,2403.1,2402.8,3.2078]
[1725459556650,1.06329727,2403.2,2402.9,0.97383968]
[1725459556848,1.06329727,2403.2,2403.1,0.41614]
[1725459557048,1.06952935,2403.3,2403.1,0.55747919]
[1725459557345,4.57694,2403.2,2402.6,0.41622]
[1725459557648,1.08663286,2403.2,2402.9,0.41618]
[1725459557951,1.08663286,2403.2,2403.0,0.97344318]
[1725459558245,1.08663286,2403.2,2402.8,3.2078]
[1725459558453,1.08663286,2403.2,2402.9,1.38195436]
[1725459558665,1.08663286,2403.1,2403.0,0.55736258]
[1725459558865,1.04046,2402.9,2402.4,3.2078]
[1725459559038,1.08780008,2402.5,2402.3,3.2078]
[1725459559443,1.08780008,2402.5,2402.4,0.82496949]
[1725459559646,1.63170013,2402.5,2402.4,1.38256216]
[1725459559842,1.63170013,2402.5,2402.4,0.76120447]
[1725459560044,1.63170013,2402.5,2402.4,1.58626217]
[1725459560355,2.17560017,2402.7,2402.4,1.58626217]
[1725459560356,1.63170013,2402.6,2402.4,1.58626217]
[1725459560545,1.63170013,2402.6,2402.4,0.2036118]
[1725459560546,1.08828321,2402.5,2402.4,0.2036118]
[1725459560747,1.08828321,2402.5,2402.4,1.38326564]
[1725459560948,1.08828321,2402.5,2402.4,2.00972497]
[1725459561350,1.63170013,2402.6,2402.5,0.41625]
[1725459561351,1.08828321,2402.6,2402.5,0.41625]
[1725459561654,1.08828321,2402.6,2402.4,0.21018933]
[1725459561947,1.08828321,2402.6,2401.9,0.41634]
[1725459561948,6.75426017,2402.5,2401.9,0.41634]
[1725459562152,1.08840539,2402.3,2402.0,1.24228827]
[1725459562347,1.08840539,2402.3,2402.1,4.03375827]
[1725459562542,1.08840539,2402.3,2402.2,1.3842079]
[1725459563456,16.07784183,2402.3,2401.8,0.41636]
[1725459563645,1.08822706,2402.0,2401.9,1.38471932]
[1725459563845,1.08822706,2402.0,2401.9,1.80106932]
[1725459564061,1.63234059,2402.1,2401.9,1.80106932]
[1725459564062,1.08822706,2402.1,2402.0,0.41634]
[1725459564248,1.63234059,2402.2,2402.1,0.41632]
[1725459564448,1.08826436,2402.2,2402.1,5.96423932]
[1725459564654,5.20526436,2402.4,2402.2,0.4163]
[1725459564955,5.74934059,2402.4,2402.3,0.55827066]
[1725459565409,4.117,2402.4,2402.3,1.80069608]
[1725459565553,1.08823955,2402.5,2402.4,0.41627]
[1725459565858,1.08823955,2402.6,2402.4,4.79963252]
[1725459566057,1.63198428,2402.6,2402.5,0.55827066]
[1725459566252,2.17645412,2402.7,2402.5,0.55827066]
[1725459566570,6.75508412,2402.6,2402.1,0.41631]
[1725459566852,7.50764183,2402.8,2402.3,0.41628]
[1725459566853,1.08768356,2402.4,2402.3,0.41628]
[1725459567051,1.08768356,2402.5,2402.4,0.41627]
[1725459567262,1.08768356,2402.6,2402.4,4.79961153]
[1725459567465,1.08768356,2402.6,2402.5,1.80079082]
[1725459567776,1.08768356,2402.7,2402.5,1.80079082]
[1725459567954,1.08793942,2402.7,2402.5,1.80078082]
[1725459568151,1.08793942,2402.7,2402.6,1.80077082]
[1725459568550,1.08793942,2402.8,2402.6,1.38454082]
[1725459568748,1.08793942,2402.8,2402.7,0.5583598]
[1725459568949,2.04772535,2402.8,2402.7,0.5583598]
[1725459569147,4.5778,2402.8,2402.7,0.5583598]
[1725459569353,4.57781,2402.8,2402.3,0.41628]
[1725459569552,1.08800379,2402.5,2402.4,0.55834646]
[1725459569757,1.08800379,2402.5,2402.4,1.5899178]
[1725459569957,1.08800379,2402.5,2402.4,0.55834646]
[1725459570254,1.08800379,2402.5,2402.4,0.76211793]
[1725459570255,1.63200569,2402.5,2402.4,0.76211793]
[1725459570754,1.63200569,2402.6,2402.5,0.41625]
[1725459570952,1.63200569,2402.6,2402.5,0.97459646]
[1725459571161,1.63200569,2402.6,2402.5,0.55834646]
[1725459571347,2.17600759,2402.6,2402.4,0.20377147]
[1725459571553,2.59224759,2402.6,2402.5,0.55836304]
[1725459571752,1.04063,2402.5,2401.7,0.41638]
[1725459571959,1.50399784,2401.9,2401.8,1.38468112]
[1725459572255,2.17481601,2401.9,2401.6,3.2078]
[1725459572461,1.63067293,2401.8,2401.7,0.41638]
[1725459572762,1.63067293,2401.8,2401.7,0.55847594]
[1725459573057,1.6283947,2401.8,2401.6,3.2078]
[1725459573255,1.08555301,2401.7,2401.6,3.2078]
[1725459573447,1.6283947,2401.7,2401.6,0.55848293]
[1725459573648,1.6283947,2401.7,2401.3,0.41645]
[1725459573649,0.41643,2401.5,2401.1,0.20774183]
[1725459573856,0.41643,2401.5,2400.7,4.81480173]
[1725459573857,3.2078,2401.4,2401.2,0.55853429]
[1725459574070,3.2078,2401.4,2400.7,3.2078]
[1725459574071,2.0448547,2401.3,2400.8,0.41653]
[1725459574258,10.88851601,2401.4,2400.8,0.41653]
[1725459574259,1.08463981,2401.1,2400.8,1.03702259]
[1725459574458,1.08463981,2401.2,2400.8,0.62700678]
[1725459574652,1.08463981,2401.2,2400.8,0.62701678]
[1725459574956,1.08463981,2401.2,2400.5,0.62276814]
[1725459574957,1.08463981,2400.9,2400.5,0.62276814]
[1725459575249,1.08463981,2400.9,2400.5,0.41658]
[1725459575758,1.08463981,2401.1,2401.0,0.41651]
[1725459575964,3.2078,2401.7,2401.0,0.41651]
[1725459575965,1.08463981,2401.6,2401.0,4.72333644]
[1725459576183,1.08463981,2401.6,2400.9,3.2078]
[1725459576184,0.00624519,2401.3,2400.9,3.2078]
[1725459576361,0.00624519,2401.3,2401.2,0.41647]
[1725459576970,1.08463981,2402.0,2401.7,0.41638]
[1725459577165,1.08463981,2402.1,2401.5,3.2078]
[1725459577365,1.08463981,2402.3,2401.6,1.26605368]
[1725459577660,1.08463981,2402.3,2402.0,0.41633]
[1725459577862,1.08463981,2402.3,2401.9,0.41634]
[1725459578060,1.08463981,2402.3,2401.7,0.558414]
[1725459578061,0.00624519,2402.2,2401.7,0.00624519]
[1725459578260,1.090885,2402.2,2401.7,0.00624519]
[1725459578474,6.30097981,2402.0,2401.7,0.00624519]
[1725459578764,0.41637,2401.8,2401.7,0.00624519]
[1725459578963,1.74973981,2401.9,2401.7,0.00624519]
[1725459579159,0.6651,2401.9,2401.7,0.00624519]
[1725459579453,5.66420981,2401.8,2401.7,0.00624519]
[1725459579656,5.24783981,2401.8,2401.7,0.00624519]
[1725459580458,5.24863981,2401.8,2401.7,0.00624519]
[1725459580658,1.74973981,2401.9,2401.7,0.42263519]
[1725459580862,1.62695972,2402.0,2401.7,0.42263519]
[1725459580863,1.08463981,2402.0,2401.7,0.00624519]
[1725459581154,0.00624519,2402.2,2402.1,0.41632]
[1725459581357,0.00624519,2402.2,2401.7,0.00624519]
[1725459581570,0.00624519,2402.2,2401.9,0.41634]
[1725459581761,0.00624519,2402.2,2401.7,0.00624519]
[1725459581962,0.00624519,2402.2,2401.7,0.21106592]
[1725459582269,0.42255519,2402.2,2401.7,0.00624519]
[1725459582458,0.42255519,2402.2,2401.7,0.42262519]
[1725459582459,1.507195,2402.2,2401.7,0.42262519]
[1725459582659,1.507195,2402.2,2401.7,0.00624519]
[1725459582861,1.090885,2402.2,2401.7,0.00624519]
[1725459583070,1.090885,2402.2,2401.8,0.41636]
[1725459583267,0.00624519,2402.2,2401.8,3.2078]
[1725459583660,0.00624519,2402.2,2401.7,0.21393986]
[1725459583865,0.00624519,2402.2,2402.0,0.41633]
[1725459584266,0.00624519,2402.2,2401.9,3.2078]
[1725459584267,0.00624519,2402.2,2402.1,0.41632]
[1725459584767,0.00624519,2402.2,2401.9,3.2078]
[1725459584962,0.00624519,2402.2,2402.1,0.41632]
[1725459585169,0.00624519,2402.2,2401.9,3.2078]
[1725459585486,0.00624519,2402.2,2402.1,0.41632]
[1725459585661,1.77683981,2402.9,2402.2,1.04076]
[1725459585857,1.08463981,2402.9,2402.4,3.2078]
[1725459586058,0.41624,2402.6,2402.4,3.2078]
[1725459586263,0.41622,2402.7,2402.2,0.41629]
[1725459586464,1.08463981,2402.7,2402.0,4.03391332]
[1725459586670,1.090885,2402.6,2402.0,3.62413]
[1725459586988,1.090885,2402.6,2402.3,0.41628]
[1725459587164,4.298685,2402.6,2402.1,0.55835174]
[1725459587363,4.298685,2402.6,2402.0,3.2078]
[1725459587565,1.08463981,2402.5,2402.0,3.2078]
[1725459587762,0.41627,2402.4,2402.0,3.62413]
[1725459587960,1.090885,2402.6,2402.0,3.2078]
[1725459588160,1.507125,2402.6,2402.2,0.41628]
[1725459588362,1.507125,2402.6,2402.1,0.41631]
[1725459588363,0.41626,2402.5,2402.1,0.41631]
[1725459588570,1.090885,2402.6,2402.0,3.2078]
[1725459588770,1.507135,2402.6,2402.2,0.4163]
[1725459589084,0.41626,2402.5,2402.1,0.41631]
[1725459589374,0.41627,2402.4,2402.1,0.41632]
[1725459589670,1.090885,2402.6,2402.4,0.41626]
[1725459589875,0.00624519,2402.6,2402.3,3.2078]
[1725459590058,0.00624519,2402.6,2402.5,0.41625]
[1725459590265,0.00624519,2402.6,2402.4,0.41626]
[1725459590562,0.00624519,2402.6,2402.5,0.41625]
[1725459591079,0.00624519,2402.6,2402.5,0.97453526]
[1725459591371,0.00624519,2402.6,2402.5,0.55828526]
[1725459591573,0.00624519,2402.6,2402.3,3.62408]
[1725459591764,0.00624519,2402.6,2402.5,0.41625]
[1725459591958,0.00624519,2402.6,2402.4,0.41626]
[1725459592868,0.00624519,2402.6,2402.5,0.41625]
[1725459593072,0.00624519,2402.6,2402.5,0.97454098]
[1725459593363,0.00624519,2402.6,2402.5,0.55830383]
[1725459593566,0.00624519,2402.6,2402.3,3.2078]
[1725459593766,0.41625,2402.5,2402.4,0.55831465]
[1725459593968,0.42248519,2402.6,2402.3,3.2078]
[1725459594173,0.00624519,2402.6,2402.3,3.62408]
[1725459594372,0.00624519,2402.6,2402.3,3.62407]
[1725459594677,0.00624519,2402.6,2402.5,0.41625]
[1725459594971,0.00624519,2402.6,2402.5,0.97454229]
[1725459595168,0.00624519,2402.6,2402.5,1.80057944]
[1725459595368,0.00624519,2402.6,2402.5,5.96297944]
[1725459596079,0.00624519,2402.6,2402.5,4.57865]
[1725459596378,0.00624519,2402.6,2402.5,1.3842882]
[1725459596691,0.00624519,2402.6,2402.5,0.82602558]
[1725459596869,0.00624519,2402.6,2402.3,0.41627]
[1725459597262,0.42247519,2402.6,2402.2,4.03396598]
[1725459597571,0.00624519,2402.6,2402.3,0.97461578]
[1725459597773,0.00624519,2402.6,2402.2,4.03396598]
[1725459598084,0.00624519,2402.6,2402.2,0.82616598]
[1725459598266,0.41628,2402.3,2402.2,0.82616598]
[1725459598663,4.1624,2402.3,2402.2,0.82616598]
[1725459598868,4.57868,2402.3,2402.2,0.82616598]
[1725459599268,10.57868,2402.3,2402.2,0.82616598]
[1725459599678,11.6194,2402.3,2402.2,0.43218722]
[1725459599876,12.70403981,2402.3,2402.2,0.43218722]
[1725459600276,6.20563972,2402.3,2402.2,0.43218722]
[1725459600571,13.24635972,2402.3,2402.2,0.43218722]
[1725459600782,11.6194,2402.3,2402.2,0.43218722]
[1725459600971,13.24017848,2402.3,2402.2,0.43218722]
[1725459601172,2.33167848,2402.4,2402.3,0.41628]
[1725459601371,1.08069155,2402.5,2402.4,0.41627]
[1725459601571,0.00624519,2402.6,2402.5,1.45688]
[1725459601768,0.00624519,2402.6,2402.5,0.41625]
[1725459601976,0.00624519,2402.6,2402.4,0.41626]
[1725459601977,0.41625,2402.5,2402.4,0.41626]
[1725459602171,0.00624519,2402.6,2402.5,0.41625]
[1725459602573,4.16864519,2402.6,2402.5,0.41625]
[1725459602975,0.00624519,2402.6,2402.5,0.41625]
[1725459603777,0.00624519,2402.6,2402.4,0.41626]
[1725459603974,0.41625,2402.5,2402.4,0.41627]
[1725459604477,0.41625,2402.5,2401.8,5.52947859]
[1725459604478,5.20303,2402.5,2401.8,4.48856859]
[1725459604681,1.04076,2402.2,2402.1,0.82608008]
[1725459604977,0.41632,2402.1,2401.9,0.41634]
[1725459605183,0.41634,2402.0,2401.9,0.5583124]
[1725459605376,3.62414,2402.0,2401.9,0.5583124]
[1725459605576,14.82819,2402.0,2401.9,0.5583124]
[1725459606482,1.4573,2401.8,2401.7,1.07757967]
[1725459606780,1.45737,2401.7,2401.6,1.60700173]
[1725459606977,15.49807,2401.7,2401.6,1.60700173]
[1725459607675,8.45709,2401.7,2401.6,1.60700173]
[1725459607872,15.49807,2401.7,2401.6,1.60700173]
[1725459608074,0.41642,2401.5,2401.4,0.00624519]
[1725459608273,6.25748,2401.5,2401.4,0.00624519]
[1725459608570,16.42148,2401.5,2401.4,0.00624519]
[1725459609872,15.38042,2401.5,2401.4,0.00624519]
[1725459610075,17.12496196,2401.5,2401.4,0.00624519]
[1725459610279,6.20123952,2401.5,2401.4,0.00624519]
[1725459610585,10.46064793,2401.5,2401.4,0.00624519]
[1725459610783,10.46064793,2401.5,2401.4,0.42268519]
[1725459610784,1.08040154,2401.5,2401.4,0.42268519]
[1725459611080,4.95710154,2401.7,2401.5,0.41642]
[1725459611285,4.28820154,2401.7,2401.6,0.4164]
[1725459611494,2.70122106,2402.0,2401.5,4.24886]
[1725459611678,2.16096196,2402.2,2401.6,1.04102]
[1725459611679,1.08040154,2402.2,2401.6,1.04102]
[1725459611983,4.82861952,2402.3,2402.2,0.4163]
[1725459611984,3.2078,2402.3,2402.2,0.4163]
[1725459612177,1.08040154,2402.5,2401.9,3.2078]
[1725459612380,1.08040154,2402.5,2402.0,0.41632]
[1725459612381,0.41629,2402.3,2402.0,0.41632]
[1725459612575,4.28820154,2402.4,2401.7,0.89599457]
[1725459612781,0.41629,2402.3,2402.0,0.41633]
[1725459612982,4.28820154,2402.4,2401.7,4.10379457]
[1725459613185,1.49666154,2402.5,2402.2,0.41629]
[1725459613381,1.08040154,2402.5,2401.9,3.2078]
[1725459613588,0.41632,2402.1,2401.8,0.41636]
[1725459613793,4.28820154,2402.4,2401.7,0.6905]
[1725459613988,1.08040154,2402.3,2401.7,0.6905]
[1725459614187,1.49669154,2402.3,2402.0,0.41634]
[1725459614390,0.41631,2402.2,2401.9,0.41635]
[1725459614686,1.49669154,2402.3,2402.0,0.41634]
[1725459614884,1.08040154,2402.3,2402.2,0.4163]
[1725459615078,4.28820154,2402.5,2402.0,3.2078]
[1725459615493,4.28820154,2402.5,2402.3,0.41627]
[1725459615688,4.28820154,2402.5,2401.9,0.41635]
[1725459615903,1.49667154,2402.4,2402.0,0.41632]
[1725459616186,0.4163,2402.3,2401.9,0.41634]
[1725459616387,1.08040154,2402.4,2401.7,0.6905]
[1725459616577,3.2078,2401.9,2401.4,0.42267519]
[1725459616781,3.2078,2401.6,2401.5,0.41642]
[1725459616984,1.08040154,2401.9,2401.4,0.00624519]
[1725459617389,1.08040154,2402.0,2401.4,0.00624519]
[1725459617686,1.62081952,2402.1,2401.5,0.41641]
[1725459617687,1.08040154,2402.1,2401.5,0.41641]
[1725459617886,0.41638,2401.8,2401.5,0.41642]
[1725459618082,0.41639,2401.7,2401.4,0.42267519]
[1725459618282,4.28820154,2402.0,2401.5,0.41642]
[1725459618283,1.08040154,2401.9,2401.5,0.41642]
[1725459618483,4.82861952,2402.0,2401.4,0.00624519]
[1725459618484,4.70454154,2402.0,2401.7,0.41639]
[1725459618675,4.28820154,2402.0,2401.4,0.00624519]
[1725459618880,1.08040154,2402.1,2402.0,0.41634]
[1725459619089,1.08040154,2402.3,2401.8,0.20868735]
[1725459619382,1.08040154,2402.4,2402.3,0.41628]
[1725459619585,1.08040154,2402.5,2402.1,0.41631]
[1725459619778,0.41627,2402.4,2402.0,0.41632]
[1725459619995,0.41631,2402.2,2401.6,3.41609168]
[1725459620188,1.49667154,2402.4,2401.7,0.55821137]
[1725459620493,0.41627,2402.4,2402.0,0.41633]
[1725459620795,1.08040154,2402.5,2402.1,0.41631]
[1725459621089,1.08040154,2402.5,2401.4,5.99465576]
[1725459621090,0.41631,2402.2,2401.4,9.20245576]
[1725459621314,3.2078,2402.3,2401.6,1.04102]
[1725459621497,3.2078,2402.3,2401.7,0.55822089]
[1725459621684,1.08040154,2402.4,2401.9,3.2078]
[1725459621887,1.08040154,2402.5,2402.2,0.4163]
[1725459622087,1.08040154,2402.4,2402.1,0.41631]
[1725459622287,1.08040154,2402.4,2402.0,0.41633]
[1725459622487,1.08040154,2402.4,2401.9,0.41634]
[1725459622688,1.08040154,2402.3,2402.0,0.41633]
[1725459622884,1.08040154,2402.4,2401.8,3.2078]
[1725459623087,1.62081952,2402.5,2401.9,1.23218531]
[1725459623088,1.08040154,2402.5,2401.9,1.23218531]
[1725459623293,4.29444673,2402.6,2402.2,0.41629]
[1725459623593,4.29444673,2402.6,2401.9,0.674]
[1725459623787,4.29444673,2402.6,2402.4,0.41626]
[1725459623788,3.21404519,2402.6,2402.4,0.41626]
[1725459624095,3.21404519,2402.6,2402.3,0.41627]
[1725459624391,0.41629,2402.3,2402.0,0.55817131]
[1725459624591,0.41631,2402.2,2402.0,0.55817131]
[1725459624793,4.28820154,2402.3,2402.0,0.55817131]
[1725459624997,4.28820154,2402.3,2402.1,0.41632]
[1725459625295,4.28820154,2402.3,2402.0,0.55817131]
[1725459625296,3.2078,2402.3,2402.0,0.55817131]
[1725459625597,0.4163,2402.2,2402.0,0.55817131]
[1725459625798,5.21632,2402.1,2402.0,0.55817131]
[1725459625998,11.00033952,2402.1,2402.0,0.55817131]
[1725459626299,1.62296562,2402.1,2402.0,0.97451131]
[1725459626492,1.08203964,2402.1,2402.0,0.97451131]
[1725459626688,1.08203964,2402.1,2402.0,0.55817131]
[1725459626885,1.08203964,2402.2,2402.0,0.55817131]
[1725459627086,1.49834964,2402.2,2402.0,0.55817131]
[1725459627494,1.08203964,2402.2,2402.1,0.41632]
[1725459627892,3.78392758,2402.4,2402.0,1.59901131]
[1725459627893,1.08203964,2402.4,2402.2,0.4163]
[1725459628096,1.08203964,2402.5,2402.4,0.41627]
[1725459628297,0.00624519,2402.6,2402.5,0.41625]
[1725459628895,0.00624519,2402.6,2402.4,0.41626]
[1725459629291,0.00624519,2402.6,2402.5,0.41625]
[1725459629491,0.00624519,2402.6,2402.5,3.62405]
[1725459629702,1.08203964,2403.0,2402.5,13.3702]
[1725459629899,1.08203964,2403.1,2402.9,0.41617]
[1725459630106,1.08203964,2403.2,2402.9,0.41617]
[1725459630597,1.08203964,2403.2,2402.8,3.2078]
[1725459630806,0.00624519,2403.2,2402.9,0.41617]
[1725459631100,1.50441483,2403.2,2402.8,0.42243519]
[1725459631496,1.08828483,2403.2,2402.9,0.41618]
[1725459631695,1.08828483,2403.2,2402.8,0.00624519]
[1725459631696,0.00624519,2403.2,2403.1,0.41614]
[1725459632205,0.00624519,2403.2,2402.9,0.41618]
[1725459632601,0.00624519,2403.2,2402.8,0.00624519]
[1725459632808,1.08828483,2403.2,2402.8,0.00624519]
[1725459633001,1.04053,2402.8,2402.1,0.41632]
[1725459633305,1.08170791,2402.6,2402.4,0.41626]
[1725459633599,1.08170791,2402.5,2402.0,0.55815788]
[1725459633804,1.49794791,2402.6,2401.9,4.6212]
[1725459634004,1.08170791,2402.6,2402.2,3.2078]
[1725459634204,1.08170791,2402.7,2402.6,0.41623]
[1725459634409,2.16096196,2403.0,2402.6,0.41623]
[1725459634410,1.08170791,2403.0,2402.6,7.3702]